Cogmind - Beta 13 X2 --- EXPLORER MODE // 2024.01.01 @ 04:04:59 // Winter2022/Polymind Player: Minty Result: Destroyed by H-88 Terminator with KE Penetrator Performance ------------- Evolutions (8) 4000 Regions Visited (20) 4000 Robots Destroyed (108) 540 Value Destroyed (6746) 6746 Prototype IDs (25) 500 Alien Tech Used (0) 0 Bonus (11502) 11502 TOTAL SCORE: 27008 Bonus ------- Polymind Skill 7715 Pacifist 364 High Alert Combat Kills 459 Follower Combat Kills 92 Entered Garrisons 400 Used RIF Installer 500 Entered DSFs 1000 Scanned by Researcher 1000 Friendly Fire -28 Cogmind --------- Core Integrity 0/1450 Matter 0/0 Energy 58/100 System Corruption 0% Temperature Cool (0) Movement Core (50) Location -2/Section 7 Parts ------- > --- POWER (1) -------- (None) > --- PROPULSION (2) --- (None) > --- UTILITY (7) ------ (None) > --- WEAPON (2) ------- (None) > --- INVENTORY (0) ---- (None) Peak State ------------ > --- POWER ------------ Reinforced Antimatter Reactor > --- PROPULSION ------- Armored Heavy Treads Armored Heavy Treads > --- UTILITY ---------- Advanced Power Amplifier Advanced Cooling System Advanced Cooling System Advanced Cooling System Advanced Coolant Injector Quantum Capacitor Improved Weapon Shielding Improved Heavy Armor Plating Medium Reflective Plating Medium Insulated Plating Improved Dynamic Insulation System > --- WEAPON ----------- Nova Cannon > --- INVENTORY -------- (None) [Rating: 120] Favorites ----------- Power Light Ion Engine Engine Light Ion Engine Power Core Light Nuclear Core Reactor Improved Quantum Reactor Propulsion Wheel Treads Armored Treads Leg High-density Centrium Leg Wheel Wheel Hover Unit Improved Antigrav System Flight Unit Xenon Bombardment Thruster Utility Advanced Heat Sink Device Advanced Heat Sink Storage Small Battery Processor Salvage Targeting Computer Hackware Improved Hacking Suite Protection Improved Weapon Shielding Weapon Gamma Rifle Energy Gun Gamma Rifle Energy Cannon Nova Cannon Ballistic Gun Heavy Machine Gun Ballistic Cannon Slug Cannon Special Weapon Enhanced Flamer Slashing Weapon Power Sword Special Melee Weapon Advanced Datajack Build | -11 -10 -10 -8 -6 -6 -5 -5 -5 -4 -4 -4 -4 -3 -3 -3 -2 -2 -2 -2 -2 ------- Run | Yrd Mat Sub Rec Fac DSF Fac Upp Upp Fac Was Fac DSF Res Tes Gar Res Gar Res Qua Sec Slots Evolved . | . . . . . . . . . . . . . . . . . . . . . Power . | . . . . . . . . . . . . . . . . . . . . . Propulsion . | . . . . . . . . . . . . . . . . . . . . . Utility . | . . . . . . . . . . . . . . . . . . . . . Weapon . | . . . . . . . . . . . . . . . . . . . . . Parts Attached . | . . . . . . . . . . . . . . . . . . . . . Power . | . . . . . . . . . . . . . . . . . . . . . Engine . | . . . . . . . . . . . . . . . . . . . . . Core . | . . . . . . . . . . . . . . . . . . . . . Reactor . | . . . . . . . . . . . . . . . . . . . . . Propulsion . | . . . . . . . . . . . . . . . . . . . . . Treads . | . . . . . . . . . . . . . . . . . . . . . Leg . | . . . . . . . . . . . . . . . . . . . . . Wheel . | . . . . . . . . . . . . . . . . . . . . . Hover . | . . . . . . . . . . . . . . . . . . . . . Flight . | . . . . . . . . . . . . . . . . . . . . . Utility . | . . . . . . . . . . . . . . . . . . . . . Device . | . . . . . . . . . . . . . . . . . . . . . Storage . | . . . . . . . . . . . . . . . . . . . . . Processor . | . . . . . . . . . . . . . . . . . . . . . Hackware . | . . . . . . . . . . . . . . . . . . . . . Protection . | . . . . . . . . . . . . . . . . . . . . . Artifact . | . . . . . . . . . . . . . . . . . . . . . Weapon . | . . . . . . . . . . . . . . . . . . . . . Energy Gun . | . . . . . . . . . . . . . . . . . . . . . Energy Cannon . | . . . . . . . . . . . . . . . . . . . . . Ballistic Gun . | . . . . . . . . . . . . . . . . . . . . . Ballistic Cannon . | . . . . . . . . . . . . . . . . . . . . . Launcher . | . . . . . . . . . . . . . . . . . . . . . Special Weapon . | . . . . . . . . . . . . . . . . . . . . . Impact Weapon . | . . . . . . . . . . . . . . . . . . . . . Slashing Weapon . | . . . . . . . . . . . . . . . . . . . . . Piercing Weapon . | . . . . . . . . . . . . . . . . . . . . . Special Melee Weapon . | . . . . . . . . . . . . . . . . . . . . . Unidentified Prototypes . | . . . . . . . . . . . . . . . . . . . . . Parts Lost 59 | . . . . . 2 1 5 . 4 . . . 15 9 4 6 2 2 2 7 Power 8 | . . . . . . . 1 . 1 . . . 2 1 . . . 1 . 2 Propulsion 16 | . . . . . 1 1 . . 2 . . . 5 2 2 1 . 1 1 . Utility 14 | . . . . . . . 2 . . . . . 2 4 1 2 . . 1 2 Weapon 21 | . . . . . 1 . 2 . 1 . . . 6 2 1 3 2 . . 3 Highest Loss Streak 7 | . . . . . 2 1 3 . 4 . . . 7 7 3 2 2 2 2 3 To Critical Strikes 3 | . . . . . . . . . . . . . 2 . . . . . . 1 Average Slot Usage (%) 79 | . 100 100 89 100 87 81 93 100 62 . 40 80 77 93 87 79 63 65 78 75 Engine 6 | . 16 16 17 20 13 11 6 . . . 10 20 2 . . 1 . 10 15 3 Core 1 | . . . . . 1 3 8 25 12 . . . . . . . . . . . Reactor 5 | . . . . . . . . . . . . . 8 12 10 8 17 5 2 6 Treads 3 | . . . . . 1 5 15 . . . . . 6 . . 5 . . . . Leg 5 | . . . . . 25 . . . . . . . 3 20 . . 5 . 4 15 Wheel 7 | . 33 33 35 40 . 6 . . . . 20 40 4 . . . . 19 27 . Hover 2 | . . . . . . 12 . . . . . . 6 1 16 3 . . . . Flight 6 | . . . . . . . 17 50 34 . . . . . 15 14 25 15 . . Device 14 | . 33 33 17 20 29 13 12 . . . . . 15 23 10 21 5 . 4 16 Storage 4 | . . . 17 20 . 3 . . . . 10 20 6 1 7 1 . 10 13 . Processor 4 | . . . . . . 16 7 . . . . . 3 6 5 1 . . . 10 Protection 2 | . . . . . 1 3 . . . . . . 1 4 . 10 . . . 1 Energy Gun 4 | . . . . . 12 . . . . . . . 7 17 10 1 5 1 11 2 Ballistic Gun 7 | . . . . . 1 3 16 25 15 . . . 9 . 5 4 5 5 . 15 Special Weapon 1 | . 16 16 . . . . 7 . . . . . 2 1 5 1 . . . . Naked Turns 419 | . 4 3 23 . 2 33 15 . 3 104 21 . 46 17 11 37 8 41 35 16 Heaviest Build 85 | . 6 6 9 9 59 59 19 8 8 . 4 4 47 59 29 85 27 17 27 49 Greatest Support 120 | 3 20 20 32 32 84 84 40 8 8 3 20 20 56 96 36 120 50 20 50 64 Greatest Overweight (x) 2 | . . . . . 1 1 . . . . . . 1 2 . 1 1 . . . Average Overweight (x) . | . . . . . . . . . . . . . . . . . . . . . Largest Inventory Capacity 9 | . . . 4 4 4 1 1 . . . 1 1 5 9 5 5 1 1 1 1 Average Capacity 1 | . . . 3 4 1 . . . . . . 1 1 1 3 . . . . . Most Carried 5 | . . . 4 1 1 1 . . . . . . . 5 3 . . . . . Average Carried . | . . . . . . . . . . . . . . . 2 . . . . . Final Capacity 5 | . . . 4 4 1 1 . . . . 1 1 5 5 . . . 1 1 . Final Carried 3 | . . . . 1 1 . . . . . . . . 3 . . . . . . Class Distribution -------------------- 16% | Worker 13% | Swarmer 9% | Grunt 8% | Cogmind 8% | Behemoth 8% | Hydra 7% | Programmer 6% | Sentry 6% | Hunter 5% | Alpha 7 4% | Recycler 3% | Watcher Dominant Class ---------------- Tunneler | -10/Materials Tunneler | -10/Subcaves Recycler | -8/Recycling Recycler | -6/Factory Grunt | -6/DSF Watcher | -5/Factory Hydra | -5/Upper Caves Swarmer | -5/Upper Caves Swarmer | -4/Factory Cogmind | -4/Waste Cogmind | -4/Factory Worker | -4/DSF Sentry | -3/Research Grunt | -3/Testing Programmer | -3/Garrison Behemoth | -2/Research Swarmer | -2/Garrison Worker | -2/Research Worker | -2/Quarantine Alpha 7 | -2/Section 7 Resources | -11 -10 -10 -8 -6 -6 -5 -5 -5 -4 -4 -4 -4 -3 -3 -3 -2 -2 -2 -2 -2 ----------- Run | Yrd Mat Sub Rec Fac DSF Fac Upp Upp Fac Was Fac DSF Res Tes Gar Res Gar Res Qua Sec Matter Collected 1341 | . . . . . 42 131 118 45 . . . . 238 8 . 85 . 56 . 618 Remotely . | . . . . . . . . . . . . . . . . . . . . . Salvage Created 4547 | . . . . . 196 71 69 . . . . . 806 766 119 772 123 168 86 1371 Parts 276 | . . . . . 2 5 5 2 3 . . . 29 40 9 51 . 7 5 118 Haulers Intercepted . | . . . . . . . . . . . . . . . . . . . . . Recyclers Shooed 2 | . . . . . . . . . . . . . . . . 1 . 1 . . Parts Field Recycled . | . . . . . . . . . . . . . . . . . . . . . Retrieved Matter . | . . . . . . . . . . . . . . . . . . . . . Parts Self-Destructed . | . . . . . . . . . . . . . . . . . . . . . Prevented . | . . . . . . . . . . . . . . . . . . . . . Kills | -11 -10 -10 -8 -6 -6 -5 -5 -5 -4 -4 -4 -4 -3 -3 -3 -2 -2 -2 -2 -2 ------- Run | Yrd Mat Sub Rec Fac DSF Fac Upp Upp Fac Was Fac DSF Res Tes Gar Res Gar Res Qua Sec Combat Hostiles Destroyed 91 | . . . . . 2 1 5 3 1 . . . 11 19 3 17 2 1 1 25 Melee 1 | . . . . . . . . . . . . . . 1 . . . . . . Guns 69 | . . . . . 2 1 3 3 1 . . . 10 16 2 4 2 . 1 24 Cannons 12 | . . . . . . . 2 . . . . . . . . 10 . . . . Classes Destroyed 17 | . . . . . 1 1 3 . . . . . 1 1 . 4 . 1 . 5 Worker 6 | . . . . . . . . . . . . . 1 1 . 2 . . . 2 Builder 2 | . . . . . . . . . . . . . . . . . . . . 2 Tunneler 1 | . . . . . . . . . . . . . . . . 1 . . . . Recycler 1 | . . . . . . . . . . . . . . . . . . 1 . . Watcher 2 | . . . . . . . . . . . . . . . . 1 . 1 . . Swarmer 24 | . . . . . . . 3 3 1 . . . . 3 . 10 . . . 4 Saboteur 1 | . . . . . . . . . . . . . . . . . . . . 1 Grunt 29 | . . . . . . . 2 . . . . . 3 8 3 2 2 . . 9 Brawler 1 | . . . . . . . . . . . . . . . . . . . . 1 Duelist 3 | . . . . . . . . . . . . . . 2 . 1 . . . . Researcher 5 | . . . . . . . . . . . . . . . . . . . . 5 Sentry 6 | . . . . . . . . . . . . . 1 . . . . 1 . 4 Hunter 17 | . . . . . 2 . . . . . . . 5 4 . 2 . . . 4 Programmer 6 | . . . . . . 1 . . . . . . 2 2 . . . . 1 . Heavy 1 | . . . . . . . . . . . . . . . . 1 . . . . Behemoth 1 | . . . . . . . . . . . . . . . . 1 . . . . S7 Guard 1 | . . . . . . . . . . . . . . . . . . . . 1 Alpha 7 1 | . . . . . . . . . . . . . . . . . . . . 1 Decomposer 1 | . . . . . . . 1 . . . . . . . . . . . . . Best Kill Streak 13 | . . . . . 1 1 2 3 1 . . . 4 6 3 5 2 2 1 13 Combat Bots Only 9 | . . . . . 1 1 2 3 1 . . . 3 5 3 4 2 1 1 9 Max Kills in Single Turn 2 | . . . . . 1 1 1 1 1 . . . 2 2 1 1 1 1 1 2 Gunslinging 1 | . . . . . . . . . . . . . . 1 . . . . . 1 Exploded . | . . . . . . . . . . . . . . . . . . . . . Melee 1 | . . . . . . . . . . . . . . 1 . . . . . . Uniques/NPCs Destroyed . | . . . . . . . . . . . . . . . . . . . . . Combat | -11 -10 -10 -8 -6 -6 -5 -5 -5 -4 -4 -4 -4 -3 -3 -3 -2 -2 -2 -2 -2 -------- Run | Yrd Mat Sub Rec Fac DSF Fac Upp Upp Fac Was Fac DSF Res Tes Gar Res Gar Res Qua Sec Hostile Shots Fired 1471 | . . 28 . . 53 16 62 23 37 3 . 3 338 178 58 168 98 19 31 356 Missed 451 | . . 12 . . 20 7 18 12 13 2 . 2 88 61 22 41 37 4 10 102 Damage Taken 13205 | . . 65 . . 570 171 482 103 236 31 . 16 2897 1797 506 2498 1015 250 321 2247 Core 2932 | . . 32 . . 155 67 82 28 81 31 . . 472 362 162 378 402 126 143 411 Absorbed by Shields 40 | . . . . . . . . . . . . . . . . . 40 . . . Redirected to Shielding 204 | . . . . . . . . . . . . . . 166 . 38 . . . . Ignored by Resistances 8882 | . . 49 . . 100 59 289 63 147 18 . 9 2001 662 129 1064 613 147 144 3388 Core Remaining (%) 77 | 100 . . 87 . 81 . . 82 . . . 90 . . 23 . . . . . Volleys Fired 389 | . . 1 . . 17 7 24 14 12 . . . 62 48 7 69 8 18 4 98 Largest 3 | . . 1 . . 3 3 2 1 1 . . . 3 3 2 2 2 1 2 3 Hottest 201 | . . 100 . . 114 114 108 23 23 . . . 150 201 150 150 157 50 157 125 Shots Fired 698 | . . 1 . . 21 13 35 14 12 . . . 136 120 14 78 13 18 8 215 Gun 632 | . . . . . 19 6 25 14 12 . . . 136 120 14 32 13 18 8 215 Cannon 50 | . . . . . 2 7 . . . . . . . . . 41 . . . . Launcher . | . . . . . . . . . . . . . . . . . . . . . Special 16 | . . 1 . . . . 10 . . . . . . . . 5 . . . . Kinetic 343 | . . . . . 6 13 25 14 12 . . . 73 . . 14 1 10 . 175 Thermal 244 | . . 1 . . 15 . 10 . . . . . 28 116 . 46 12 8 8 . Explosive . | . . . . . . . . . . . . . . . . . . . . . Electromagnetic 111 | . . . . . . . . . . . . . 35 4 14 18 . . . 40 Robot Hit Streak 90 | . . . . . 12 4 11 10 8 . . . 32 17 24 37 8 12 20 90 Robot Miss Streak 3 | . . 1 . . 1 . 1 1 3 . . . 2 1 1 2 1 3 . 2 Penetration Max 2 | . . . . . . . . . . . . . 1 . . . . . . 2 Secondary Targets 16 | . . . . . . . . . . . . . 4 5 1 . 1 . . 5 Max Gunslinging Chain 1 | . . . . . . . . . . . . . 1 1 1 . 1 . . 1 Capacitor 37 | . . . . . . . . . . . . . . . . 37 . . . . Shots Hit Robots 603 | . . . . . 14 2 30 12 7 . . . 123 104 9 71 11 15 8 197 Core Hits 291 | . . . . . 3 2 15 3 2 . . . 46 40 5 34 5 9 2 125 Critical Kills 9 | . . . . . . . . . . . . . 1 1 . 1 . . . 6 Critical Parts Destroyed 14 | . . . . . . . . 1 . . . . . 4 . . . . . 9 Critical Strikes 49 | . . . . . 2 . 2 1 . . . . 4 15 1 1 . . . 23 Burn 12 | . . . . . 2 . 2 . . . . . . 8 . . . . . . Meltdown 1 | . . . . . . . . . . . . . . . . 1 . . . . Destroy 29 | . . . . . . . . 1 . . . . 2 5 . . . . . 21 Corrupt 5 | . . . . . . . . . . . . . 2 . 1 . . . . 2 Sever 2 | . . . . . . . . . . . . . . 2 . . . . . . Melee Attacks 8 | . . . . . . . . . . . . . . 6 . 2 . . . . Impact . | . . . . . . . . . . . . . . . . . . . . . Slashing 6 | . . . . . . . . . . . . . . 6 . . . . . . Piercing . | . . . . . . . . . . . . . . . . . . . . . Sneak Attacks 1 | . . . . . . . . . . . . . . . . 1 . . . . Combat Hostiles . | . . . . . . . . . . . . . . . . . . . . . Follow-up Attacks . | . . . . . . . . . . . . . . . . . . . . . Damage Inflicted 16219 | . . . . . 303 68 461 224 102 . . . 2681 3288 313 2480 277 326 236 5460 Guns 14123 | . . . . . 303 68 347 224 102 . . . 2673 3056 309 761 274 326 236 5444 Cannons 1710 | . . . . . . . . . . . . . . . . 1710 . . . . Explosions . | . . . . . . . . . . . . . . . . . . . . . Melee 228 | . . . . . . . . . . . . . . 228 . . . . . . Ramming 35 | . . . . . . . . . . . . . 8 4 4 . 3 . . 16 Kinetic 6927 | . . . . . . 68 347 224 102 . . . 1464 . . 301 . 166 . 4255 Thermal 6488 | . . . . . 303 . 114 . . . . . 743 2939 . 1719 274 160 236 . Explosive . | . . . . . . . . . . . . . . . . . . . . . Electromagnetic 2541 | . . . . . . . . . . . . . 466 117 309 460 . . . 1189 Impact . | . . . . . . . . . . . . . . . . . . . . . Slashing 228 | . . . . . . . . . . . . . . 228 . . . . . . Piercing . | . . . . . . . . . . . . . . . . . . . . . Highest Corruption 9 | . . . . . . 2 2 2 . 3 3 3 8 9 9 . . . . . Average Corruption 4 | . . . . . . 1 2 2 . 3 3 3 7 8 9 . . . . . Corruption Purged . | . . . . . . . . . . . . . . . . . . . . . Corruption Blocked 60 | . . . . . . . . . . . . . . . . . . . . 60 Effects 34 | . . . . . . 2 9 . . 2 . 3 7 10 1 . . . . . Message Errors 6 | . . . . . . 1 2 . . . . . 1 2 . . . . . . Matter Fused 4 | . . . . . . . 2 . . . . 1 . 1 . . . . . . Heat Flow Errors 8 | . . . . . . 1 2 . . 2 . 1 . 2 . . . . . . Energy Discharges 4 | . . . . . . . 1 . . . . . 1 1 1 . . . . . Data Loss (minor) 6 | . . . . . . . 1 . . . . 1 2 2 . . . . . . Misfires 3 | . . . . . . . 1 . . . . . 1 1 . . . . . . Alerts 1 | . . . . . . . . . . . . . 1 . . . . . . . Weapon Failures 2 | . . . . . . . . . . . . . 1 1 . . . . . . Overload Shots . | . . . . . . . . . . . . . . . . . . . . . Overflow Damage 31 | . . . . . . . . . . . . . . 19 . 12 . . . . Projectiles 12 | . . . . . . . . . . . . . . . . 12 . . . . Explosions . | . . . . . . . . . . . . . . . . . . . . . Melee 19 | . . . . . . . . . . . . . . 19 . . . . . . Knockbacks . | . . . . . . . . . . . . . . . . . . . . . Impact . | . . . . . . . . . . . . . . . . . . . . . Kinetic . | . . . . . . . . . . . . . . . . . . . . . Secondary . | . . . . . . . . . . . . . . . . . . . . . Self-Inflicted Damage 3 | . . . . . . . . . . . . . . . 2 . 1 . . . Shots . | . . . . . . . . . . . . . . . . . . . . . Rammed 7 | . . . . . . . . . . . . . 5 . 1 . 1 . . . Targets Rammed 14 | . . . . . . . . . . . . . 8 1 1 . 1 . . 3 Kicked 7 | . . . . . . . . . . . . . 3 1 . . . . . 3 Crushed . | . . . . . . . . . . . . . . . . . . . . . Highest Temperature 350 | . . 24 . . 118 271 109 20 14 126 . 107 195 201 51 163 101 350 254 123 Average Temperature 54 | . . 16 . . 50 243 33 10 8 58 . 57 82 92 27 25 39 92 141 12 Received Heat Transfer 3120 | . . 66 . . 24 . 237 . 21 . . 9 480 362 124 567 279 81 335 535 Siege Activations . | . . . . . . . . . . . . . . . . . . . . . Robots Corrupted 5 | . . . . . . . . . . . . . 1 . 1 2 . . . 1 Combat Hostiles 5 | . . . . . . . . . . . . . 1 . 1 2 . . . 1 Parts Fried 19 | . . . . . . . . . . . . . 7 . 2 5 . . . 5 Impact Corruptions . | . . . . . . . . . . . . . . . . . . . . . Robots Melted 4 | . . . . . . . . . . . . . . 2 . 1 . 1 . . Combat Hostiles 4 | . . . . . . . . . . . . . . 2 . 1 . 1 . . Parts Melted 39 | . . . . . . . . . . . . . 1 26 . 7 3 1 1 . Heat Transferred 9628 | . . . . . 666 . 1120 . . . . . 925 4363 . 1555 407 296 296 . Parts Sabotaged 4 | . . . . . . . . . . . . . . . 4 . . . . . Parts Stolen . | . . . . . . . . . . . . . . . . . . . . . Parts Stripped . | . . . . . . . . . . . . . . . . . . . . . Power Chain Reactions . | . . . . . . . . . . . . . . . . . . . . . Missiles Intercepted . | . . . . . . . . . . . . . . . . . . . . . Alert | -11 -10 -10 -8 -6 -6 -5 -5 -5 -4 -4 -4 -4 -3 -3 -3 -2 -2 -2 -2 -2 ------- Run | Yrd Mat Sub Rec Fac DSF Fac Upp Upp Fac Was Fac DSF Res Tes Gar Res Gar Res Qua Sec Peak Influence 648 | . . . 157 246 174 179 . . 133 24 12 35 210 507 270 448 208 264 420 648 Initial 196 | . . . 78 196 134 52 . . 48 24 12 5 14 81 131 113 163 87 110 169 Average 192 | . . . 118 223 159 112 . . 99 24 11 11 109 241 189 215 180 194 211 391 Maximum Alert Level 2 | . . . . 1 . . . . . . . . 1 2 1 2 1 1 2 2 Low Security (%) 64 | . 100 . 100 44 100 100 . . 100 100 100 100 96 43 71 32 74 48 64 18 Level 1 24 | . . . . 55 . . . . . . . . 3 33 28 64 25 51 24 27 Level 2 11 | . . . . . . . . . . . . . . 23 . 2 . . 10 54 Level 3 . | . . . . . . . . . . . . . . . . . . . . . Level 4 . | . . . . . . . . . . . . . . . . . . . . . Level 5 . | . . . . . . . . . . . . . . . . . . . . . High Security . | . . . . . . . . . . . . . . . . . . . . . Max Security . | . . . . . . . . . . . . . . . . . . . . . Sterilizations 1 | . . . . . 1 . . . . . . . . . . . . . . . Squads Dispatched 25 | . . . . 1 . 2 . . 1 . . . 4 5 . 2 . 1 3 6 Investigation 8 | . . . . 1 . 2 . . 1 . . . 1 1 . . . . 2 . Extermination 4 | . . . . . . . . . . . . . 2 1 . 1 . . . . Reinforcement 12 | . . . . . . . . . . . . . 1 3 . 1 . 1 1 5 Assault 1 | . . . . . . . . . . . . . . . . . . . . 1 Garrison . | . . . . . . . . . . . . . . . . . . . . . Intercept . | . . . . . . . . . . . . . . . . . . . . . Searches Triggered . | . . . . . . . . . . . . . . . . . . . . . Construction Impeded 1 | . . . . . . . . . . . . . . 1 . . . . . . Haulers Reinforced 2 | . . . . . . . . . . . . . . . . . . . . 2 Active Scanning Responses . | . . . . . . . . . . . . . . . . . . . . . Cargo Convoy Interrupts . | . . . . . . . . . . . . . . . . . . . . . Stealth | -11 -10 -10 -8 -6 -6 -5 -5 -5 -4 -4 -4 -4 -3 -3 -3 -2 -2 -2 -2 -2 --------- Run | Yrd Mat Sub Rec Fac DSF Fac Upp Upp Fac Was Fac DSF Res Tes Gar Res Gar Res Qua Sec Distress Signals 12 | . . . . . . . . . . . . . . 1 . 6 . 1 . 4 Communications Jammed . | . . . . . . . . . . . . . . . . . . . . . Distress Signals . | . . . . . . . . . . . . . . . . . . . . . Times Spotted 296 | . . 12 . . 10 11 7 3 7 6 . 2 30 40 15 58 17 7 14 57 Peak Tracking Total 8 | . . 4 . . 4 6 4 3 5 6 . 2 6 7 6 8 8 5 8 7 Tactical Retreats 24 | . . 1 . . . 2 . . . . . 2 5 2 . 5 . . 1 6 Traps | -11 -10 -10 -8 -6 -6 -5 -5 -5 -4 -4 -4 -4 -3 -3 -3 -2 -2 -2 -2 -2 ------- Run | Yrd Mat Sub Rec Fac DSF Fac Upp Upp Fac Was Fac DSF Res Tes Gar Res Gar Res Qua Sec Traps Triggered 7 | . . . . . . 1 . . 1 . . . 2 . . 2 1 . . . Indirectly . | . . . . . . . . . . . . . . . . . . . . . Trap Hack Attempts . | . . . . . . . . . . . . . . . . . . . . . Triggered . | . . . . . . . . . . . . . . . . . . . . . Disarmed 4 | . . . . . . 4 . . . . . . . . . . . . . . Reprogrammed . | . . . . . . . . . . . . . . . . . . . . . Reused . | . . . . . . . . . . . . . . . . . . . . . Traps Extracted . | . . . . . . . . . . . . . . . . . . . . . Installed . | . . . . . . . . . . . . . . . . . . . . . Triggered . | . . . . . . . . . . . . . . . . . . . . . Machines | -11 -10 -10 -8 -6 -6 -5 -5 -5 -4 -4 -4 -4 -3 -3 -3 -2 -2 -2 -2 -2 ---------- Run | Yrd Mat Sub Rec Fac DSF Fac Upp Upp Fac Was Fac DSF Res Tes Gar Res Gar Res Qua Sec Machines Disabled 4 | . . . . . 1 . . . . . . . . 2 . . . . . 1 Max in Single Turn 1 | . . . . . 1 . . . . . . . . 1 . . . . . 1 Garrison Access 1 | . . . . . . . . . . . . . . . . . . . . 1 Machines Repaired . | . . . . . . . . . . . . . . . . . . . . . Machines Dismantled . | . . . . . . . . . . . . . . . . . . . . . Machines Sabotaged 4 | . . . 1 1 . . . . 1 . . . . 1 . . . . . . Overloaded Fab Kills . | . . . . . . . . . . . . . . . . . . . . . Hacking | -11 -10 -10 -8 -6 -6 -5 -5 -5 -4 -4 -4 -4 -3 -3 -3 -2 -2 -2 -2 -2 --------- Run | Yrd Mat Sub Rec Fac DSF Fac Upp Upp Fac Was Fac DSF Res Tes Gar Res Gar Res Qua Sec Machines Accessed 25 | . . . 4 2 . 2 2 . 1 . 1 . 1 2 1 2 . 1 3 3 Terminals 14 | . . . 2 2 . 1 1 . 1 . 1 . 1 1 1 . . . 1 2 Fabricators 1 | . . . . . . 1 . . . . . . . . . . . . . . Repair Stations 2 | . . . . . . . . . . . . . . . . . . 1 1 . Recycling Units 3 | . . . 2 . . . . . . . . . . . . 1 . . . . Scanalyzers 1 | . . . . . . . . . . . . . . . . . . . 1 . Garrison Access 3 | . . . . . . . . . . . . . . 1 . 1 . . . 1 Total Hacks 54 | . . . 13 2 . 7 2 . 3 . 2 . 4 4 1 5 . 2 5 4 Successful 36 | . . . 10 2 . 5 2 . 2 . 1 . 1 2 1 4 . 1 2 3 Failed 18 | . . . 3 . . 2 . . 1 . 1 . 3 2 . 1 . 1 3 1 Catastrophic 1 | . . . . . . . . . . . . . 1 . . . . . . . Database Lockouts . | . . . . . . . . . . . . . . . . . . . . . Manual 19 | . . . 6 1 . 3 . . 3 . . . 1 3 . . . 1 1 . Terminals 35 | . . . 9 2 . 4 1 . 3 . 2 . 4 3 1 . . . 3 3 Fabricators 3 | . . . . . . 3 . . . . . . . . . . . . . . Repair Stations 3 | . . . . . . . . . . . . . . . . . . 2 1 . Recycling Units 8 | . . . 4 . . . . . . . . . . . . 4 . . . . Scanalyzers 1 | . . . . . . . . . . . . . . . . . . . 1 . Garrison Access 3 | . . . . . . . . . . . . . . 1 . 1 . . . 1 Terminal Hacks 14 | . . . 4 1 . 2 2 . . . 1 . 1 . 1 . . . . 2 Record 1 | . . . . . . . 1 . . . . . . . . . . . . . Prototype ID Bank 1 | . . . 1 . . . . . . . . . . . . . . . . . Open Door 1 | . . . . . . . 1 . . . . . . . . . . . . . Open DSF 2 | . . . . 1 . . . . . . 1 . . . . . . . . . Level Access Points 1 | . . . 1 . . . . . . . . . . . . . . . . . Locate Traps 1 | . . . . . . 1 . . . . . . . . . . . . . . Disarm Traps 1 | . . . . . . 1 . . . . . . . . . . . . . . Investigation Status 1 | . . . 1 . . . . . . . . . . . . . . . . . Recall Investigation 1 | . . . 1 . . . . . . . . . . . . . . . . . Recall Reinforcements 3 | . . . . . . . . . . . . . 1 . . . . . . 2 Garrison Registry 1 | . . . . . . . . . . . . . . . 1 . . . . . Fabricator Hacks 1 | . . . . . . 1 . . . . . . . . . . . . . . Network Status 1 | . . . . . . 1 . . . . . . . . . . . . . . Repair Station Hacks 2 | . . . . . . . . . . . . . . . . . . 1 1 . Refit 2 | . . . . . . . . . . . . . . . . . . 1 1 . Recycling Unit Hacks 6 | . . . 3 . . . . . . . . . . . . 3 . . . . Process 3 | . . . 1 . . . . . . . . . . . . 2 . . . . Report Inventory 2 | . . . 1 . . . . . . . . . . . . 1 . . . . Retrieve Matter 1 | . . . 1 . . . . . . . . . . . . . . . . . Scanalyzer . | . . . . . . . . . . . . . . . . . . . . . Garrison Access Hacks 3 | . . . . . . . . . . . . . . 1 . 1 . . . 1 Unlock Access 2 | . . . . . . . . . . . . . . 1 . 1 . . . . Seal Access 1 | . . . . . . . . . . . . . . . . . . . . 1 Unauthorized Hacks 10 | . . . 3 1 . 2 . . 2 . . . . 1 . . . . 1 . Terminals 7 | . . . 2 1 . 1 . . 2 . . . . 1 . . . . . . Botnet 3 | . . . 1 . . 1 . . 1 . . . . . . . . . . . Sabotage 4 | . . . 1 1 . . . . 1 . . . . 1 . . . . . . Fabricators 1 | . . . . . . 1 . . . . . . . . . . . . . . Fabnet 1 | . . . . . . 1 . . . . . . . . . . . . . . Repair Stations . | . . . . . . . . . . . . . . . . . . . . . Recycling Units 1 | . . . 1 . . . . . . . . . . . . . . . . . Tunnel 1 | . . . 1 . . . . . . . . . . . . . . . . . Scanalyzers 1 | . . . . . . . . . . . . . . . . . . . 1 . Extract 1 | . . . . . . . . . . . . . . . . . . . 1 . Garrison Access . | . . . . . . . . . . . . . . . . . . . . . Data Cores Recovered . | . . . . . . . . . . . . . . . . . . . . . Used . | . . . . . . . . . . . . . . . . . . . . . Hacking Detections 14 | . . . 3 . . 2 . . 1 . . . 1 2 . 1 . 1 1 2 Full Trace Events 5 | . . . 1 . . 2 . . . . . . 1 . . . . . 1 . Feedback Events . | . . . . . . . . . . . . . . . . . . . . . Feedback Blocked . | . . . . . . . . . . . . . . . . . . . . . Robot Schematics Acquired 1 | . . . . . . . . . . . . . . 1 . . . . . . Robots Built . | . . . . . . . . . . . . . . . . . . . . . Authchips . | . . . . . . . . . . . . . . . . . . . . . Time . | . . . . . . . . . . . . . . . . . . . . . Total Robot Build Rating . | . . . . . . . . . . . . . . . . . . . . . Part Schematics Acquired 12 | . . . . . . . . . . . . . . 3 . . . . 3 6 Parts Built . | . . . . . . . . . . . . . . . . . . . . . Authchips . | . . . . . . . . . . . . . . . . . . . . . Time . | . . . . . . . . . . . . . . . . . . . . . Total Part Build Rating . | . . . . . . . . . . . . . . . . . . . . . Parts Repaired . | . . . . . . . . . . . . . . . . . . . . . Time . | . . . . . . . . . . . . . . . . . . . . . Parts Recycled . | . . . . . . . . . . . . . . . . . . . . . Recycled Matter 78 | . . . 4 . . . . . . . . . . . . 74 . . . . Retrieved Matter 4 | . . . 4 . . . . . . . . . . . . . . . . . Retrieved Components . | . . . . . . . . . . . . . . . . . . . . . Parts Scanalyzed . | . . . . . . . . . . . . . . . . . . . . . Part Schematics Acquired . | . . . . . . . . . . . . . . . . . . . . . Parts Damaged . | . . . . . . . . . . . . . . . . . . . . . Bothacking | -11 -10 -10 -8 -6 -6 -5 -5 -5 -4 -4 -4 -4 -3 -3 -3 -2 -2 -2 -2 -2 ------------ Run | Yrd Mat Sub Rec Fac DSF Fac Upp Upp Fac Was Fac DSF Res Tes Gar Res Gar Res Qua Sec Used RIF Installer 1 | . . . . . . . . . . . . . . . 1 . . . . . Robots Hacked 33 | . . . 1 . . 2 1 . 2 . . . 3 6 2 12 2 . 1 1 Non-combat 8 | . . . 1 . . 2 . . . . . . . . . 5 . . . . Combat 25 | . . . . . . . 1 . 2 . . . 3 6 2 7 2 . 1 1 Robot Hacks Applied 43 | . . . 1 . . 3 1 . . . . . 6 8 2 17 2 . 2 1 parse_system 1 | . . . . . . . . . . . . . . . . 1 . . . . no_distress 1 | . . . . . . . . . . . . . . . . 1 . . . . find_chute 1 | . . . . . . 1 . . . . . . . . . . . . . . map_walls 2 | . . . . . . . . . . . . . . . . 2 . . . . find_recycling 1 | . . . 1 . . . . . . . . . . . . . . . . . find_terminals 1 | . . . . . . . . . . . . . . . . 1 . . . . map_route 1 | . . . . . . 1 . . . . . . . . . . . . . . mark_security 1 | . . . . . . 1 . . . . . . . . . . . . . . find_scanalyzer 1 | . . . . . . . . . . . . . . 1 . . . . . . report_analyses 1 | . . . . . . . . . . . . . . 1 . . . . . . find_shortcuts 20 | . . . . . . . 1 . . . . . 3 3 2 7 2 . 1 1 find_garrison 12 | . . . . . . . . . . . . . 3 3 . 5 . . 1 . Relay Couplers Released . | . . . . . . . . . . . . . . . . . . . . . Fabnet Peak Effective % 3 | . . . . . . . . . 3 3 3 3 1 1 1 . . . . . Autooverrided 4 | . . . . . . . . . 2 . . . . 2 . . . . . . Robots Rewired 2 | . . . . . . 1 . . . . . . . 1 . . . . . . Allies Hacked . | . . . . . . . . . . . . . . . . . . . . . Hacks Repelled . | . . . . . . . . . . . . . . . . . . . . . Allies | -11 -10 -10 -8 -6 -6 -5 -5 -5 -4 -4 -4 -4 -3 -3 -3 -2 -2 -2 -2 -2 -------- Run | Yrd Mat Sub Rec Fac DSF Fac Upp Upp Fac Was Fac DSF Res Tes Gar Res Gar Res Qua Sec Total Allies 12 | . . . . . . 1 . . 2 . . . 4 4 . . 1 . . . Largest Group 3 | . . . . . . 1 . . 1 . . . 3 2 . . 1 . . . Highest-Rated Group 153 | . . . . . . 49 . . 47 . . . 153 146 . . 62 . . . Highest-Rated Ally 146 | . . . . . . 49 . . 47 . . . 64 146 . . 62 . . . Total Orders . | . . . . . . . . . . . . . . . . . . . . . Ally Attacks 42 | . . . . . . 9 . . 5 . . . 7 18 . . 3 . . . Total Damage 1452 | . . . . . . 382 . . 116 . . . 186 630 . . 138 . . . Kills 5 | . . . . . . 1 . . 2 . . . . 1 . . 1 . . . Allies Corrupted . | . . . . . . . . . . . . . . . . . . . . . Allies Melted 2 | . . . . . . 2 . . . . . . . . . . . . . . Intel | -11 -10 -10 -8 -6 -6 -5 -5 -5 -4 -4 -4 -4 -3 -3 -3 -2 -2 -2 -2 -2 ------- Run | Yrd Mat Sub Rec Fac DSF Fac Upp Upp Fac Was Fac DSF Res Tes Gar Res Gar Res Qua Sec Robot Analysis Total 21 | . 1 . 1 . 2 2 2 . . . . . 3 3 1 3 1 . . 2 Derelict Logs Recovered . | . . . . . . . . . . . . . . . . . . . . . Drone Launches . | . . . . . . . . . . . . . . . . . . . . . Drone Recoveries . | . . . . . . . . . . . . . . . . . . . . . Exploration | -11 -10 -10 -8 -6 -6 -5 -5 -5 -4 -4 -4 -4 -3 -3 -3 -2 -2 -2 -2 -2 ------------- Run | Yrd Mat Sub Rec Fac DSF Fac Upp Upp Fac Was Fac DSF Res Tes Gar Res Gar Res Qua Sec Turns Passed 4990 | . 17 18 187 61 132 317 643 45 82 104 36 119 768 418 113 627 102 208 393 600 Spaces Moved 5191 | 1 16 21 201 61 80 421 882 60 178 207 60 149 474 234 181 679 94 311 491 390 Core 1096 | 1 7 8 44 . 2 77 29 . 6 207 40 . 111 30 18 70 14 82 112 238 Treads 496 | . . . . . 4 35 207 . . . . . 91 . . 159 . . . . Legs 454 | . . . . . 70 . . . . . . . 39 157 . . 3 . 33 152 Wheels 1082 | . 9 13 157 61 4 64 9 . . . 20 149 112 . . 19 . 119 346 . Hover 587 | . . . . . . 245 . . . . . . 121 47 100 74 . . . . Flight 1476 | . . . . . . . 637 60 172 . . . . . 63 357 77 110 . . Fastest Speed 32 | 50 50 50 50 100 50 50 32 32 32 50 50 80 50 50 34 34 34 34 50 50 Average Speed 72 | 50 66 68 89 100 121 69 65 32 34 50 60 80 94 98 45 73 74 55 75 75 Slowest Speed 240 | 50 80 80 100 100 190 160 170 32 50 50 80 80 240 150 52 170 120 80 120 120 Overloaded Moves . | . . . . . . . . . . . . . . . . . . . . . Propulsion Burnouts . | . . . . . . . . . . . . . . . . . . . . . Robots Hopped 4 | . . . . . . . . . 2 . . . . . . 2 . . . . Cave-ins Triggered . | . . . . . . . . . . . . . . . . . . . . . Exploration Rate (%) 31 | 2 6 3 41 2 81 14 95 13 7 86 2 85 13 33 26 23 31 15 61 28 Regions Visited 20 Branch Regions 7 Pre-discovered Areas 2 | . . . 1 . . . 1 . . . . . . . . . . . . . Known Exits Taken 14 | 1 1 1 1 1 . 1 1 1 . . 1 . 1 1 . 1 . 1 1 . Unknown Exits Taken . | . . . . . . . . . . . . . . . . . . . . . Scrap Searched 5 | . . 1 . . . . 4 . . . . . . . . . . . . . Spaces Dug 3 | . . . . . . 3 . . . . . . . . . . . . . . Terrain Destroyed 11 | . . . . . . 4 . . . . . . 1 4 . . . . . 2 Melee . | . . . . . . . . . . . . . . . . . . . . . Projectile 8 | . . . . . . 4 . . . . . . . 4 . . . . . . AOE . | . . . . . . . . . . . . . . . . . . . . . Terrain Rammed . | . . . . . . . . . . . . . . . . . . . . . Walls Destroyed . | . . . . . . . . . . . . . . . . . . . . . Machines Disabled . | . . . . . . . . . . . . . . . . . . . . . Actions | -11 -10 -10 -8 -6 -6 -5 -5 -5 -4 -4 -4 -4 -3 -3 -3 -2 -2 -2 -2 -2 --------- Run | Yrd Mat Sub Rec Fac DSF Fac Upp Upp Fac Was Fac DSF Res Tes Gar Res Gar Res Qua Sec Total 5769 | . 22 21 208 61 96 434 908 73 188 206 59 148 633 308 192 760 111 328 503 510 Wait 79 | . . . . . . 6 3 . . . . . 38 . 2 7 . . 4 19 Move 5164 | . 15 20 200 60 79 420 881 59 174 206 59 148 473 234 179 675 92 310 490 390 Hop 4 | . . . . . . . . . 2 . . . . . . 2 . . . . Pick Up 5 | . . . 4 1 . . . . . . . . . . . . . . . . Fast Attach . | . . . . . . . . . . . . . . . . . . . . . Attach . | . . . . . . . . . . . . . . . . . . . . . Detach . | . . . . . . . . . . . . . . . . . . . . . Swap . | . . . . . . . . . . . . . . . . . . . . . Drop 5 | . . . . . . . . . . . . . . 5 . . . . . . Fire 389 | . . 1 . . 17 7 24 14 12 . . . 62 48 7 69 8 18 4 98 Melee 8 | . . . . . . . . . . . . . . 6 . 2 . . . . Ram 3 | . . . . . . . . . . . . . 1 . 1 . 1 . . . Kick 7 | . . . . . . . . . . . . . 3 1 . . . . . 3 Crush 4 | . . . . . . . . . . . . . 4 . . . . . . . Escape Stasis 31 | . . . . . . . . . . . . . 16 . . . 10 . 5 . Rewire 7 | . . . . . . 1 . . . . . . 2 3 . 1 . . . . Trap . | . . . . . . . . . . . . . . . . . . . . . Miscellaneous 63 | . 7 . 4 . . . . . . . . . 34 11 3 4 . . . . Route ------- -11/Scrapyard -10/Materials -10/Subcaves -8/Recycling -6/Factory -6/DSF -5/Factory -5/Upper Caves -5/Upper Caves -4/Factory -4/Waste -4/Factory -4/DSF -3/Research -3/Testing -3/Garrison (discovered 3 exits: *Res x3) -2/Research -2/Garrison -2/Research -2/Quarantine -2/Section 7 History --------- Turn | Location | Event 1 | -11/Scrapyard | Identified exit to Materials 1 | -11/Scrapyard | Discovered exit to Materials (range 0) 1 | -11/Scrapyard | Entered Materials 13 | -10/Materials | Identified exit to Subcaves 13 | -10/Materials | Discovered exit to Subcaves (range 3) 18 | -10/Materials | Entered Subcaves 28 | -10/Subcaves | Identified exit to Recycling 28 | -10/Subcaves | Discovered exit to Recycling (range 10) 36 | -10/Subcaves | Entered Recycling 174 | -8/Recycling | Identified exit to Factory 223 | -8/Recycling | Entered Factory 284 | -6/Factory | Identified exit to DSF 284 | -6/Factory | Entered DSF 284 | -6/DSF | Encountered a pitched battle between 0b10 and Warlord forces 287 | -6/DSF | Spotted B-75 Beast 350 | -6/DSF | Sterilization system engaged 370 | -6/DSF | Ambient heat levels rising (+10) 375 | -6/DSF | Lost 11 allies 385 | -6/DSF | Ambient heat levels rising (+10) 388 | -6/DSF | Identified exit to Factory 388 | -6/DSF | Discovered exit to Factory (range 16) 400 | -6/DSF | Ambient heat levels rising (+10) 405 | -6/DSF | Took control of P5-ROG(B) (ally) 415 | -6/DSF | Ambient heat levels rising (+10) 416 | -6/DSF | Entered Factory 715 | -5/Factory | Identified exit to Upper Caves 715 | -5/Factory | Discovered exit to Upper Caves (range 13) 733 | -5/Factory | Entered Upper Caves 739 | -5/Upper Caves | Met a Warlord Commander 740 | -5/Upper Caves | Learned location of Warlord (-5) 751 | -5/Upper Caves | Encountered a Warlord checkpoint 1124 | -5/Upper Caves | Lost 3 parts (1p2u) 1373 | -5/Upper Caves | Identified exit to Upper Caves 1373 | -5/Upper Caves | Discovered exit to Upper Caves (range 4) 1376 | -5/Upper Caves | Entered another Upper Caves area 1415 | -5/Upper Caves | Identified exit to Factory 1415 | -5/Upper Caves | Discovered exit to Factory (range 15) 1421 | -5/Upper Caves | Entered Factory 1476 | -4/Factory | Local machine network offline 1499 | -4/Factory | Spotted B-86 Titan 1503 | -4/Factory | Sucked down chute 1503 | -4/Factory | Entered Waste 1518 | -4/Waste | EMP discharged 1523 | -4/Waste | Spotted C-40 Crusher 1531 | -4/Waste | Lost 4 parts (1p2n1w) 1543 | -4/Waste | Spotted C-40 Crusher 1544 | -4/Waste | Spotted C-40 Crusher 1562 | -4/Waste | Spotted C-40 Crusher 1562 | -4/Waste | Spotted C-40 Crusher 1567 | -4/Waste | Spotted C-40 Crusher 1599 | -4/Waste | Identified exit to Factory 1599 | -4/Waste | Discovered exit to Factory (range 13) 1607 | -4/Waste | Entered Factory 1643 | -4/Factory | Identified exit to DSF 1643 | -4/Factory | Entered DSF 1725 | -4/DSF | Additional patrols routed to DSF 1751 | -4/DSF | Identified exit to Research 1751 | -4/DSF | Discovered exit to Research (range 13) 1762 | -4/DSF | Entered Research 1765 | -3/Research | Spotted B-86 Titan 2196 | -3/Research | Lost 4 parts (1p1n2w) 2366 | -3/Research | Lost 7 parts (1p2n1u3w) 2411 | -3/Research | P-80 Master assimilated allied Assassin 8a 2488 | -3/Research | Identified exit to Testing 2488 | -3/Research | Discovered exit to Testing (range 11) 2530 | -3/Research | Entered Testing 2530 | -3/Testing | Accompanied by 2 allies 2607 | -3/Testing | Lost 7 parts (1p2n2u2w) 2684 | -3/Testing | Core integrity fell below 50% 2691 | -3/Testing | Spotted PG-Q8A3FRE75U 2694 | -3/Testing | Rewired PG-Q8A3FRE75U 2697 | -3/Testing | Took control of PG-Q8A3FRE75U (ally) 2697 | -3/Testing | Scanned by Researcher 2745 | -3/Testing | Spotted Striker 2746 | -3/Testing | Spotted Striker 2948 | -3/Testing | Identified exit to Garrison 2948 | -3/Testing | Entered Garrison 2970 | -3/Garrison | Triggered checkpoint 3005 | -3/Garrison | Identified exit to Research 3005 | -3/Garrison | Discovered exit to Research (range 33) 3005 | -3/Garrison | Discovered exit to Research (range 62) 3005 | -3/Garrison | Discovered exit to Research (range 53) 3011 | -3/Garrison | Spotted B-86 Titan 3022 | -3/Garrison | Triggered checkpoint 3032 | -3/Garrison | Triggered checkpoint 3054 | -3/Garrison | Installed Relay Interface Framework 3061 | -3/Garrison | Entered Research 3061 | -2/Research | Spotted B-90 Cyclops 3065 | -2/Research | Took control of B-90 Cyclops 3070 | -2/Research | Lost 3 parts (2n1w) 3199 | -2/Research | Spotted B-90 Cyclops 3286 | -2/Research | Destroyed B-90 Cyclops 3349 | -2/Research | Spotted B-90 Cyclops 3443 | -2/Research | Spotted B-90 Cyclops 3448 | -2/Research | Took control of B-90 Cyclops 3485 | -2/Research | Spotted B-90 Cyclops 3688 | -2/Research | Identified exit to Garrison 3688 | -2/Research | Entered Garrison 3706 | -2/Garrison | Found embedded Infiltrators 3729 | -2/Garrison | Spotted B-90 Cyclops 3738 | -2/Garrison | Triggered checkpoint 3759 | -2/Garrison | Triggered checkpoint 3765 | -2/Garrison | Core integrity fell below 50% 3787 | -2/Garrison | Identified exit to Research 3787 | -2/Garrison | Discovered exit to Research (range 8) 3790 | -2/Garrison | Entered Research 3921 | -2/Research | Spotted B-90 Cyclops 3985 | -2/Research | Identified exit to Quarantine 3985 | -2/Research | Discovered exit to Quarantine (range 13) 3998 | -2/Research | Entered Quarantine 4340 | -2/Quarantine | Spotted Fortress 4389 | -2/Quarantine | Identified exit to Section 7 4389 | -2/Quarantine | Discovered exit to Section 7 (range 6) 4391 | -2/Quarantine | Entered Section 7 4458 | -2/Section 7 | Spotted S7 Guard 4480 | -2/Section 7 | Spotted B-90 Cyclops 4539 | -2/Section 7 | Scanned by Researcher 4704 | -2/Section 7 | Lost 3 parts (1p1u1w) 4707 | -2/Section 7 | Spotted Alpha 7 4716 | -2/Section 7 | Took control of Alpha 7 4730 | -2/Section 7 | Spotted Alpha 7 4743 | -2/Section 7 | Core integrity fell below 20% 4767 | -2/Section 7 | Destroyed Alpha 7 4833 | -2/Section 7 | Spotted S7 Guard 4867 | -2/Section 7 | Destroyed 9 combat bots 4868 | -2/Section 7 | Destroyed S7 Guard 4891 | -2/Section 7 | First assault squad dispatched 4978 | -2/Section 7 | Spotted Alpha 7 4991 | -2/Section 7 | Destroyed by H-88 Terminator with KE Penetrator Last Messages --------------- 04956_ K-01 Serf collects debris. 04959_ Kicked K-01 Serf out of the way. 04965_ Slug penetrates Wall. 04965_ Slug penetrates H-88 Terminator. 04965_ Slug penetrates Wall. 04968_ Slug penetrates H-88 Terminator. 04968_ Slug penetrates Molecular Binding Bank. 04968_ Slug penetrates Wall. 04970_ Critical hit (Burn: +37). 04973_ Slug penetrates Wall. 04974_ Slug penetrates H-88 Terminator. 04974_ Imp. Quantum Reactor destroyed. 04975_ Penetrated by Slug. 04976_ Slug penetrates H-88 Terminator. 04978_ Released control of Alpha 7. 04978_ Slug penetrates Alpha 7. 04978_ Penetrated by Slug. 04980_ Alpha 7 reactivates. 04980_ Penetrated by Slug. 04980_ Slug penetrates Wall. Map ----- +----------------------------------------------------+ | ????????????????????????# #=! #??????????? | | ????????????????????????# =[??# $! #??????????? | | ????????????????????????# ????# ! #??????????? | | ????????????????????????# ??????# ##?????????? | | ????????????????????????#????????# % "#?????????? | | ???????????????#########??######## ! #??????????? | | ???????????????#"""""""#??# ! =[ *=%[ #??????????? | | ???????????????# " """"#??# [[*==[*[%%##?????????? | | ???????????????# "!""#??# !*=[= =% "#?????????? | | ???????????????# """"#??#*[%%![*!!% ##?????????? | | ???????????????# !* ""#?##=]=!########??????????? | | ???????????????# =[[ #?#" !%=#?????????????????? | | ###################+####### !!]#?????????????????? | | *%$$%$= ! ![ #?????????????????? | | /=$$$! =%= #?????????????????? | | |* [% = #?????????????????? | | ??""" * h [ ! #?????????????????? | | ??"""" %#####"######;########?????????????????? | | ??""" ????#### """7""" #????????????????????? | | ? ????????# " " " " #????????????????????? | | ?????????# """ """ #????????????????????? | | ??????????# #????????????????????? | | ??????????# *#????????????????????? | | #######???????????# #????????????????????? | | ??????????????????# #????????????????????? | | ??????????????????# @ #????????????????????? | | ??????????????????###########????????????????????? | | ?????????????????????????????????????????????????? | | ?????????????????????????????????????????????????? | | ?????????????????????????????????????????????????? | | ?????????????????????????????????????????????????? | | ?????????????????????????????????????????????????? | | ?????????????????????????????????????????????????? | | ?????????????????????????????????????????????????? | | ?????????????????????????????????????????????????? | | ?????????????????????????????????????????????????? | | ?????????????????????????????????????????????????? | | ?????????????????????????????????????????????????? | | ?????????????????????????????????????????????????? | | | | | | | | | | | | | | | | | | | | | | | +----------------------------------------------------+ Best States ------------- Heat Dissipation 154 Coolant Potential 100 Energy Generation 68 Energy Capacity 550 Matter Stores 300 Matter Capacity 300 Sight Range 18 Robot Scan Range 15 Terrain Scan Range 16 Terrain Scan Density 85 ECM Strength 3 Power Amplification 30 EM Shielding 4 Corruption Containment 8 Corruption Block 15 Armor Coverage 1050 Resistance: KI 60 Resistance: TH 60 Resistance: EX 85 Resistance: EM 100 Resistance: I 60 Resistance: S 60 Resistance: P 60 Core Shielding 30 Utility Shielding 90 Weapon Shielding 66 Point Defense Rating 240 Melee Speed Boost 20 Phase Shifting 15 Evasion (%) 70 Targeting Accuracy 12 Melee Accuracy 8 Target Analysis 10 Armor Integrity Analysis 40 Recoil Reduction 7 Particle Charging 25 Salvage Targeting 1 Offensive Hacking 32 Defensive Hacking 12 Authchip Count 1 Item Schematics ----------------- Hvy. Neutron Cannon | -3/Testing | Archive Exp. Power Amplifier | -3/Testing | Archive Centrium Heavy Armor Plating | -3/Testing | Archive Prc. Phase Gun | -2/Quarantine | Extracted Hyp. Railgun | -2/Quarantine | Extracted Centrium Wheel | -2/Quarantine | Extracted Imp. Q-thruster | -2/Section 7 | Archive Energy Mantle | -2/Section 7 | Archive Vibroblade | -2/Section 7 | Archive Centrium Light Armor Plating | -2/Section 7 | Archive Gui. Micro-nuke Launcher | -2/Section 7 | Archive Cld. Field Propulsion Drive | -2/Section 7 | Archive Robot Schematics ------------------ E-15 Imp | -3/Testing | Archive Fabricated ------------ Nothing Alien Tech Used ----------------- None Achievements -------------- None Challenges ------------ None Polymind | -11 -10 -10 -8 -6 -6 -5 -5 -5 -4 -4 -4 -4 -3 -3 -3 -2 -2 -2 -2 -2 ---------- Run | Yrd Mat Sub Rec Fac DSF Fac Upp Upp Fac Was Fac DSF Res Tes Gar Res Gar Res Qua Sec Hosts 37 | . 1 . 1 . 2 2 2 . . . 1 . 3 5 2 10 2 2 2 2 Combat Hostiles 21 | . . . . . . . 1 . . . . . 3 3 2 7 2 . 1 2 Allies 4 | . . . . . 2 . 1 . . . . . . 1 . . . . . . Unique Host Classes 16 | . 1 . 1 . 2 2 2 . . . . . 3 2 . 2 . . . 1 Average Host Suspicion 76 | . . 33 14 11 96 93 48 84 69 . 1 76 89 95 78 98 54 84 44 92 Unsuspicious Activity 1224 | . 37 . 22 . 39 26 22 40 . . 5 27 481 46 12 296 . 37 101 33 Returns to Shadow . | . . . . . . . . . . . . . . . . . . . . . Fuzzy Dispatches . | . . . . . . . . . . . . . . . . . . . . . Protomatter Created 3690 | . . 5 . . 582 64 87 36 74 . . . 243 734 105 613 96 75 . 976 Used 2116 | . 5 . 5 . 93 28 38 . . . 5 . 238 328 48 743 94 10 75 406 Decayed 929 | . . . . . 401 64 . . 49 . . . . 76 . 151 . . . 188 Highest Spend 320 | . 5 . 5 . 79 23 24 . . . 5 . 97 92 24 280 70 5 70 320 Top 5 Hosts by Kills: Alpha 7 (-2/Section 7: 17) PG-Q8A3FRE75U (-3/Testing: 11) B-90 Cyclops (-2/Research: 9) H-88 Terminator (-2/Section 7: 8) G-67 Veteran (-3/Testing: 7) Game ------ Seed BoreShrapnelMicrothruster Manual? 0 Play Time 00:54:16 Cumulative 558.8 hours Start 2024.01.01 @ 00:40:44 End 2024.01.01 @ 04:04:59 Sessions 1 Manual Loads 0 Difficulty Explorer Special Mode Winter2022/Polymind Game No. 437 Rogue 167 Adventurer 123 Explorer 147 Win Type - Total 24 Types 19/0/3/1/0/0/0/1/0 Lore% 76 Gallery% 89 Achievement% 74 Wizard Run 0 Options --------- ASCII 0 Keyboard 1 Movement Numpad Keybinds 0 Fullscreen 2 Font 18/X11Bold Map View 76x50 Zoom Use 1% Tactical HUD 1 Map Filters NONE Filters NONE Steam 1 RUN: de804363-4417-4a9f-8bea-a57160b6b36f